Cogmind - Beta 16.1 --- EXPLORER MODE // 2026.06.17 @ 22:40:38 Player: NeoBioHazard Result: Escaped! Performance ------------- Evolutions (9) 4500 Regions Visited (10) 2000 Robots Destroyed (35) 175 Value Destroyed (976) 976 Prototype IDs (3) 60 Alien Tech Used (0) 0 Bonus (11610) 11610 TOTAL SCORE: 19321 Bonus ------- Pacifist 834 Win 3000 Win Speed 7776 Cogmind --------- Core Integrity 1272/1600 Matter 285/300 Energy 63/100 System Corruption 0% Temperature Cool (4) Movement Flying (37) Location To Epsilon Eridani Parts ------- > --- POWER (2) -------- (None) > --- PROPULSION (10) -- Nuclear Pulse Thruster Field Propulsion Array > --- UTILITY (12) ----- Advanced Visual Processing Unit Enhanced Optical Array Advanced Terrain Scan Processor Advanced Melee Analysis Suite > --- WEAPON (2) ------- Thunder Hammer Enhanced Force Lance > --- INVENTORY (5) ---- Light Quantum Reactor Advanced Sensor Array Peak State ------------ > --- POWER ------------ Quantum Reactor Light Quantum Reactor > --- PROPULSION ------- Nuclear Pulse Thruster Nuclear Pulse Thruster Field Propulsion Drive Nuclear Pulse Array Impulse Thruster Impulse Thruster Q-thruster Impulse Thruster Array > --- UTILITY ---------- Advanced Weight Redist. System Improved Trap Scanner Enhanced Optical Array Advanced Sensor Array Improved Signal Interpreter Advanced Signal Interpreter Advanced Terrain Scan Processor Advanced Melee Analysis Suite Cloaking Device System Guard > --- WEAPON ----------- Thunder Hammer Enhanced Force Lance > --- INVENTORY -------- Enhanced Nuclear Core Nuclear Pulse Thruster Field Propulsion Array Advanced Sensor Array [Rating: 146] Favorites ----------- Power Ion Engine Engine Ion Engine Power Core Enhanced Nuclear Core Reactor Light Antimatter Reactor Propulsion Nuclear Pulse Thruster Leg Carbon-fiber Leg Flight Unit Nuclear Pulse Thruster Utility Improved Signal Interpreter Device Advanced Sensor Array Processor Improved Signal Interpreter Protection Core Shielding Weapon Power Maul Energy Gun EM Pulse Gun Ballistic Gun Light Assault Rifle Impact Weapon Power Maul Slashing Weapon Axe Piercing Weapon Enhanced Force Lance Build | -11 -10 -9 -8 -7 -6 -5 -4 -3 -2 -1 ------- Run | Yrd Mat Mat Mat Fac Fac Fac Fac Res Res Acc Slots Evolved 19 | . 1 2 2 2 2 2 2 2 2 2 Power 1 | . . . . . . . 1 . . . Propulsion 8 | . 1 1 2 . . . . 2 . 2 Utility 10 | . . 1 . 2 2 2 1 . 2 . Weapon . | . . . . . . . . . . . Parts Attached 64 | 5 2 . 7 9 21 1 3 3 6 7 Power 7 | 1 . . . 1 1 . 1 . 1 2 Engine 2 | 1 . . . 1 . . . . . . Core 1 | . . . . . 1 . . . . . Reactor 4 | . . . . . . . 1 . 1 2 Propulsion 30 | 1 2 . 5 2 11 . . 2 3 4 Treads . | . . . . . . . . . . . Leg 15 | 1 2 . 5 2 5 . . . . . Wheel . | . . . . . . . . . . . Hover . | . . . . . . . . . . . Flight 15 | . . . . . 6 . . 2 3 4 Utility 19 | 1 . . 2 3 8 1 2 . 1 1 Device 6 | . . . . 1 3 1 1 . . . Storage . | . . . . . . . . . . . Processor 12 | . . . 2 2 5 . 1 . 1 1 Hackware . | . . . . . . . . . . . Protection 1 | 1 . . . . . . . . . . Artifact . | . . . . . . . . . . . Weapon 8 | 2 . . . 3 1 . . 1 1 . Energy Gun 1 | 1 . . . . . . . . . . Energy Cannon . | . . . . . . . . . . . Ballistic Gun 1 | 1 . . . . . . . . . . Ballistic Cannon . | . . . . . . . . . . . Launcher . | . . . . . . . . . . . Special Weapon . | . . . . . . . . . . . Impact Weapon 3 | . . . . 2 . . . 1 . . Slashing Weapon 1 | . . . . 1 . . . . . . Piercing Weapon 2 | . . . . . 1 . . . 1 . Special Melee Weapon . | . . . . . . . . . . . Unidentified Prototypes 3 | . . . . . 1 . . 1 1 . Parts Lost 21 | . . . . 2 1 . . . 2 16 Power 3 | . . . . 1 . . . . . 2 Propulsion 11 | . . . . 1 . . . . 2 8 Utility 7 | . . . . . 1 . . . . 6 Weapon . | . . . . . . . . . . . Highest Loss Streak 14 | . . . . 1 1 . . . 2 14 To Critical Strikes . | . . . . . . . . . . . Average Backups 3 | 3 4 4 4 4 4 4 4 2 2 3 Power . | . 1 1 1 . . . . . . 1 Propulsion 2 | . . . . 3 3 3 3 1 1 1 Utility 1 | 1 2 2 2 1 1 1 1 1 1 1 Weapon . | . 1 1 1 . . . . . . . Tool/Special . | . . . . . . . . . . . Unused Backups 8 | . . . . 1 4 . . . 1 2 Power 1 | . . . . . . . . . . 1 Propulsion 4 | . . . . . 3 . . . 1 . Utility 2 | . . . . . 1 . . . . 1 Weapon 1 | . . . . 1 . . . . . . Tool/Special . | . . . . . . . . . . . Average Slot Usage (%) 88 | . 80 70 83 87 94 94 91 98 90 75 Engine 3 | . 12 10 8 6 2 . . . . . Core 1 | . . . . . 3 5 5 4 4 . Reactor 1 | . . . . . . . 2 4 4 6 Leg 17 | . 30 30 44 36 11 . . . . . Flight 17 | . . . . . 24 33 30 34 32 25 Device 10 | . . . . 6 12 16 17 18 16 12 Processor 19 | . . . 5 21 21 27 26 27 25 21 Protection 4 | . 12 10 8 7 4 . . . . . Energy Gun 1 | . 12 10 8 . . . . . . . Ballistic Gun 1 | . 12 10 8 . . . . . . . Impact Weapon 4 | . . . . 6 6 5 5 4 4 3 Slashing Weapon 1 | . . . . . 5 . . . . . Piercing Weapon 1 | . . . . . . 5 5 4 4 3 Peak Build Rating 146 | 5 7 7 24 36 77 82 97 109 130 146 Average Rating 65 | 3 6 7 17 31 61 82 90 107 118 129 On Entrance 51 | . 5 7 7 24 36 77 82 97 109 120 Avg Prop Armor Cover (%) 3 | . . . . . 4 3 3 2 2 5 Naked Turns . | . . . . . . . . . . . Heaviest Build 52 | 9 9 9 9 14 20 18 30 31 37 52 Greatest Support 104 | 10 30 30 87 87 104 30 45 45 45 70 Greatest Overweight (x) 2 | 2 . . . . 2 . . . 1 1 Average Overweight (x) . | . . . . . . . . . . . Largest Inventory Capacity 5 | 5 5 5 5 5 5 5 5 5 5 5 Average Capacity 5 | 5 5 5 5 5 5 5 5 5 5 5 Most Carried 5 | 5 5 4 5 5 5 4 4 4 5 5 Average Carried 4 | 3 4 4 4 4 4 4 4 2 4 4 Final Capacity 5 | 5 5 5 5 5 5 5 5 5 5 5 Final Carried 5 | 5 4 4 5 5 5 4 4 2 3 2 Class Distribution -------------------- 48% | Hacker-Mutant 33% | Hacker-Ninja 14% | Hacker-Scout Dominant Class ---------------- Hacker-Mutant | -10/Materials Hacker-Mutant | -9/Materials Hacker-Mutant | -8/Materials Hacker-Mutant | -7/Factory Hacker-Scout | -6/Factory Hacker-Scout | -5/Factory Hacker-Ninja | -4/Factory Hacker-Ninja | -3/Research Hacker-Ninja | -2/Research Hacker-Ninja | -1/Access Resources | -11 -10 -9 -8 -7 -6 -5 -4 -3 -2 -1 ----------- Run | Yrd Mat Mat Mat Fac Fac Fac Fac Res Res Acc Matter Collected 826 | 250 . . . 162 224 10 . 60 40 80 Remotely . | . . . . . . . . . . . Salvage Created 1444 | . . . . 299 541 109 . 106 197 192 Parts 37 | . . . . 7 12 3 . 4 3 8 Haulers Intercepted 4 | . . . . . 3 1 . . . . Recyclers Shooed . | . . . . . . . . . . . Parts Field Recycled . | . . . . . . . . . . . Retrieved Matter . | . . . . . . . . . . . Parts Self-Destructed . | . . . . . . . . . . . Prevented . | . . . . . . . . . . . Parts Restored . | . . . . . . . . . . . Kills | -11 -10 -9 -8 -7 -6 -5 -4 -3 -2 -1 ------- Run | Yrd Mat Mat Mat Fac Fac Fac Fac Res Res Acc Combat Hostiles Destroyed 6 | . . . . 5 . . . . 1 . Melee 2 | . . . . 1 . . . . 1 . Classes Destroyed 9 | . . . . 5 2 . . 1 1 . Worker 6 | . . . . 2 2 . . . 1 1 Builder 2 | . . . . 1 1 . . . . . Hauler 4 | . . . . . 3 1 . . . . Recycler 1 | . . . . . 1 . . . . . Operator 4 | . . . . . . . . 1 2 1 Watcher 12 | . . . . 1 3 . . 2 2 4 Swarmer 2 | . . . . 2 . . . . . . Sentry 3 | . . . . 3 . . . . . . Programmer 1 | . . . . . . . . . 1 . Best Kill Streak 5 | . . . . 4 4 1 . 2 3 5 Combat Bots Only 4 | . . . . 4 . . . . 1 . Max Kills in Single Turn 1 | . . . . 1 1 1 . 1 1 1 Gunslinging . | . . . . . . . . . . . Exploded . | . . . . . . . . . . . Melee 1 | . . . . 1 . . . . 1 . Uniques/NPCs Destroyed . | . . . . . . . . . . . Combat | -11 -10 -9 -8 -7 -6 -5 -4 -3 -2 -1 -------- Run | Yrd Mat Mat Mat Fac Fac Fac Fac Res Res Acc Hostile Shots Fired 530 | . 22 55 32 184 19 . 4 14 26 174 Missed 226 | . 12 24 9 85 5 . 1 8 13 69 Hits 304 | . 10 31 23 99 14 . 3 6 13 105 Projectile 304 | . 10 31 23 99 14 . 3 6 13 105 Critical Strikes 7 | . . 1 . . 1 . . . 2 3 Damage Taken 2722 | . 53 237 205 547 115 . 49 91 214 1211 Core 544 | . . 14 29 106 20 . 33 . 14 328 Absorbed by Shields . | . . . . . . . . . . . Redirected to Shielding 25 | . . 2 5 15 3 . . . . . Ignored by Resistances 1688 | . 35 150 126 373 74 . 28 55 125 722 Core Remaining (%) 95 | 100 100 96 94 84 97 100 97 100 99 79 Volleys Fired . | . . . . . . . . . . . Largest . | . . . . . . . . . . . Hottest . | . . . . . . . . . . . Shots Fired . | . . . . . . . . . . . Gun . | . . . . . . . . . . . Cannon . | . . . . . . . . . . . Launcher . | . . . . . . . . . . . Special . | . . . . . . . . . . . Kinetic . | . . . . . . . . . . . Thermal . | . . . . . . . . . . . Explosive . | . . . . . . . . . . . Electromagnetic . | . . . . . . . . . . . Robot Hit Streak . | . . . . . . . . . . . Robot Miss Streak . | . . . . . . . . . . . Penetration Max . | . . . . . . . . . . . Secondary Targets . | . . . . . . . . . . . Shots Hit Robots 46 | . . . . 12 18 1 . 3 7 5 Core Hits 14 | . . . . 2 4 . . 2 2 4 Critical Kills 1 | . . . . . 1 . . . . . Critical Parts Destroyed 8 | . . . . 5 1 . . . 2 . Critical Strikes 9 | . . . . 5 2 . . . 2 . Smash 9 | . . . . 5 2 . . . 2 . Melee Attacks 133 | . . . . 13 33 1 1 34 23 28 Impact 106 | . . . . 12 23 1 1 27 17 25 Slashing 4 | . . . . 1 3 . . . . . Piercing 23 | . . . . . 7 . . 7 6 3 Sneak Attacks 14 | . . . . 4 7 1 . 1 1 . Combat Hostiles 1 | . . . . 1 . . . . . . Follow-up Attacks 1 | . . . . . 1 . . . . . Damage Inflicted 3336 | . . 2 . 670 1211 85 . 271 634 463 Guns . | . . . . . . . . . . . Cannons . | . . . . . . . . . . . Explosions . | . . . . . . . . . . . Melee 3334 | . . . . 670 1211 85 . 271 634 463 Ramming 2 | . . 2 . . . . . . . . Kinetic . | . . . . . . . . . . . Thermal . | . . . . . . . . . . . Explosive . | . . . . . . . . . . . Electromagnetic . | . . . . . . . . . . . Impact 3044 | . . . . 670 921 85 . 271 634 463 Slashing 36 | . . . . . 36 . . . . . Piercing 254 | . . . . . 254 . . . . . Highest Corruption 1 | . 1 . . . . . . . . . Average Corruption 1 | . 1 . . . . . . . . . Corruption Purged . | . . . . . . . . . . . Corruption Blocked . | . . . . . . . . . . . Overload Shots . | . . . . . . . . . . . Overflow Damage 1516 | . . . . 435 447 65 . 75 402 92 Projectiles . | . . . . . . . . . . . Explosions . | . . . . . . . . . . . Melee 1516 | . . . . 435 447 65 . 75 402 92 Knockbacks 11 | . . . . 2 2 . . 1 4 2 Impact 9 | . . . . 2 2 . . 1 3 1 Kinetic . | . . . . . . . . . . . Secondary 2 | . . . . . . . . . 1 1 Self-Inflicted Damage . | . . . . . . . . . . . Shots . | . . . . . . . . . . . Rammed . | . . . . . . . . . . . Targets Rammed 1 | . . 1 . . . . . . . . Kicked 1 | . . 1 . . . . . . . . Crushed . | . . . . . . . . . . . Highest Temperature 336 | . . 13 . . 56 . 142 336 183 276 Average Temperature 63 | . . 13 . . 6 . 86 97 45 91 Received Heat Transfer 816 | . 24 198 153 273 84 . 9 30 27 18 Effects 6 | . . . . . . . . 3 . 3 Energy Bleed 1 | . . . . . . . . 1 . . Interference 4 | . . . . . . . . 1 . 3 Damage (minor) 1 | . . . . . . . . 1 . . Siege Activations . | . . . . . . . . . . . Martial Activations . | . . . . . . . . . . . Shielding Activations . | . . . . . . . . . . . Robots Disrupted . | . . . . . . . . . . . Combat Hostiles . | . . . . . . . . . . . Robots Corrupted 16 | . . . . 7 4 . . 1 2 2 Combat Hostiles 4 | . . . . 4 . . . . . . Parts Fried 25 | . . . . 9 5 . . 2 7 2 Impact Corruptions 44 | . . . . 14 14 1 . 3 9 3 Robots Melted . | . . . . . . . . . . . Combat Hostiles . | . . . . . . . . . . . Parts Melted . | . . . . . . . . . . . Heat Transferred . | . . . . . . . . . . . Parts Sabotaged . | . . . . . . . . . . . Parts Stolen . | . . . . . . . . . . . Parts Stripped . | . . . . . . . . . . . Power Chain Reactions . | . . . . . . . . . . . Alert | -11 -10 -9 -8 -7 -6 -5 -4 -3 -2 -1 ------- Run | Yrd Mat Mat Mat Fac Fac Fac Fac Res Res Acc Maximum Alert Level . | . . . . . . . . . . . Low Security (%) 100 | 100 100 100 100 100 100 100 100 100 100 100 Level 1 . | . . . . . . . . . . . Level 2 . | . . . . . . . . . . . Level 3 . | . . . . . . . . . . . Level 4 . | . . . . . . . . . . . Level 5 . | . . . . . . . . . . . High Security . | . . . . . . . . . . . Max Security . | . . . . . . . . . . . Peak Influence 192 | . 22 15 7 125 75 26 23 70 54 192 Initial 24 | . . . . . . 19 9 3 3 24 Average 20 | . 4 3 . 23 15 21 10 35 9 68 Influence Increases 1248 | . 22 37 7 214 242 7 16 172 200 331 Destroy 0b10 Robot/C 120 | . . . . 100 . . . . 20 . Destroy 0b10 Robot/NC 145 | . . . . 20 50 5 . 15 25 30 Destroy Leader 82 | . . . . 42 12 2 . 4 14 8 Successful Hack 63 | . 7 7 7 7 . . 14 21 . . Disable Machine 12 | . . . . . 4 . . . . 8 Destroy Structure 136 | . . . . . 11 . 2 42 36 45 Partial Spotted 120 | . . . . . 15 . . 15 45 45 Lose Combat Pursuer 570 | . 15 30 . 45 150 . . 75 60 195 Influence Decreases 1203 | . 22 37 7 214 188 35 32 172 156 340 Entered New Map 96 | . . . . . . 35 17 7 7 30 Time Decay 927 | . 22 37 7 204 178 . 15 165 149 150 Lost Part 180 | . . . . 10 10 . . . . 160 Squads Dispatched 14 | . . 1 . 1 8 . 1 1 2 . Investigation 5 | . . 1 . . 2 . 1 1 . . Extermination 5 | . . . . 1 2 . . . 2 . Reinforcement 4 | . . . . . 4 . . . . . Assault . | . . . . . . . . . . . Garrison . | . . . . . . . . . . . Intercept . | . . . . . . . . . . . Searches Triggered . | . . . . . . . . . . . Construction Impeded 1 | . . . . . 1 . . . . . Haulers Reinforced 1 | . . . . . 1 . . . . . Active Scanning Responses . | . . . . . . . . . . . Cargo Convoy Interrupts . | . . . . . . . . . . . Stealth | -11 -10 -9 -8 -7 -6 -5 -4 -3 -2 -1 --------- Run | Yrd Mat Mat Mat Fac Fac Fac Fac Res Res Acc Distress Signals 4 | . 1 . 1 . . . . 1 . 1 Communications Jammed . | . . . . . . . . . . . Distress Signals . | . . . . . . . . . . . Times Spotted 101 | . 5 12 8 16 14 . 2 8 14 22 Peak Tracking Total 11 | . 4 11 6 4 6 . 2 6 7 10 Tactical Retreats 16 | . 1 1 . 2 3 . . 3 2 4 Traps | -11 -10 -9 -8 -7 -6 -5 -4 -3 -2 -1 ------- Run | Yrd Mat Mat Mat Fac Fac Fac Fac Res Res Acc Traps Triggered 4 | . 1 . . 2 1 . . . . . Indirectly . | . . . . . . . . . . . Trap Hack Attempts . | . . . . . . . . . . . Triggered . | . . . . . . . . . . . Disarmed . | . . . . . . . . . . . Reprogrammed . | . . . . . . . . . . . Reused . | . . . . . . . . . . . Traps Extracted . | . . . . . . . . . . . Installed . | . . . . . . . . . . . Triggered . | . . . . . . . . . . . Machines | -11 -10 -9 -8 -7 -6 -5 -4 -3 -2 -1 ---------- Run | Yrd Mat Mat Mat Fac Fac Fac Fac Res Res Acc Machines Disabled 3 | . . . . . 1 . . . . 2 Max in Single Turn 1 | . . . . . 1 . . . . 1 Garrison Access 1 | . . . . . . . . . . 1 Machines Repaired . | . . . . . . . . . . . Machines Dismantled . | . . . . . . . . . . . Machines Sabotaged . | . . . . . . . . . . . Overloaded Fab Kills . | . . . . . . . . . . . Hacking | -11 -10 -9 -8 -7 -6 -5 -4 -3 -2 -1 --------- Run | Yrd Mat Mat Mat Fac Fac Fac Fac Res Res Acc Machines Accessed 13 | . 1 1 1 1 2 . 1 2 3 1 Terminals 12 | . 1 1 1 1 2 . 1 2 3 . Fabricators . | . . . . . . . . . . . Repair Stations . | . . . . . . . . . . . Recycling Units . | . . . . . . . . . . . Scanalyzers . | . . . . . . . . . . . Garrison Access 1 | . . . . . . . . . . 1 Total Hacks 26 | . 1 4 2 1 6 . 3 5 3 1 Successful 8 | . 1 1 1 1 . . 1 1 1 1 Failed 18 | . . 3 1 . 6 . 2 4 2 . Catastrophic 7 | . . 1 . . 2 . . 2 2 . Database Lockouts . | . . . . . . . . . . . Manual 25 | . 1 4 2 1 6 . 3 5 3 . Terminals 25 | . 1 4 2 1 6 . 3 5 3 . Fabricators . | . . . . . . . . . . . Repair Stations . | . . . . . . . . . . . Recycling Units . | . . . . . . . . . . . Scanalyzers . | . . . . . . . . . . . Garrison Access 1 | . . . . . . . . . . 1 Terminal Hacks 7 | . 1 1 1 1 . . 1 1 1 . Level Access Points 7 | . 1 1 1 1 . . 1 1 1 . Fabricator Hacks . | . . . . . . . . . . . Repair Station Hacks . | . . . . . . . . . . . Recycling Unit Hacks . | . . . . . . . . . . . Scanalyzer . | . . . . . . . . . . . Garrison Access Hacks 1 | . . . . . . . . . . 1 Seal Access 1 | . . . . . . . . . . 1 Unauthorized Hacks . | . . . . . . . . . . . Terminals . | . . . . . . . . . . . Fabricators . | . . . . . . . . . . . Repair Stations . | . . . . . . . . . . . Recycling Units . | . . . . . . . . . . . Scanalyzers . | . . . . . . . . . . . Garrison Access . | . . . . . . . . . . . Data Cores Recovered 3 | . . . . . . . . . 2 1 Used . | . . . . . . . . . . . Hacking Detections 9 | . 1 1 . . 2 . 1 2 2 . Full Trace Events 5 | . . 1 . . 2 . 1 1 . . Feedback Events . | . . . . . . . . . . . Feedback Blocked . | . . . . . . . . . . . Robot Schematics Acquired . | . . . . . . . . . . . Robots Built . | . . . . . . . . . . . Authchips . | . . . . . . . . . . . Time . | . . . . . . . . . . . Total Robot Build Rating . | . . . . . . . . . . . Part Schematics Acquired . | . . . . . . . . . . . Parts Built . | . . . . . . . . . . . Authchips . | . . . . . . . . . . . Time . | . . . . . . . . . . . Total Part Build Rating . | . . . . . . . . . . . Part Studies Acquired . | . . . . . . . . . . . Parts Repaired . | . . . . . . . . . . . Time . | . . . . . . . . . . . Parts Recycled . | . . . . . . . . . . . Recycled Matter . | . . . . . . . . . . . Retrieved Matter . | . . . . . . . . . . . Retrieved Components . | . . . . . . . . . . . Parts Scanalyzed . | . . . . . . . . . . . Part Schematics Acquired . | . . . . . . . . . . . Parts Damaged . | . . . . . . . . . . . Bothacking | -11 -10 -9 -8 -7 -6 -5 -4 -3 -2 -1 ------------ Run | Yrd Mat Mat Mat Fac Fac Fac Fac Res Res Acc Used RIF Installer . | . . . . . . . . . . . Robots Hacked . | . . . . . . . . . . . Non-combat . | . . . . . . . . . . . Combat . | . . . . . . . . . . . Robot Hacks Applied . | . . . . . . . . . . . Relay Couplers Released . | . . . . . . . . . . . Fabnet Peak Effective % . | . . . . . . . . . . . Robots Rewired . | . . . . . . . . . . . Allies Hacked . | . . . . . . . . . . . Hacks Repelled . | . . . . . . . . . . . Allies | -11 -10 -9 -8 -7 -6 -5 -4 -3 -2 -1 -------- Run | Yrd Mat Mat Mat Fac Fac Fac Fac Res Res Acc Total Allies . | . . . . . . . . . . . Largest Group . | . . . . . . . . . . . Highest-Rated Group . | . . . . . . . . . . . Highest-Rated Ally . | . . . . . . . . . . . Total Orders . | . . . . . . . . . . . Ally Attacks . | . . . . . . . . . . . Total Damage . | . . . . . . . . . . . Kills . | . . . . . . . . . . . Allies Corrupted . | . . . . . . . . . . . Allies Melted . | . . . . . . . . . . . Intel | -11 -10 -9 -8 -7 -6 -5 -4 -3 -2 -1 ------- Run | Yrd Mat Mat Mat Fac Fac Fac Fac Res Res Acc Active Infowar (turns) 1147 | . . . . . 294 15 39 239 359 201 Optics 968 | . . . . . 115 15 39 239 359 201 Sensors 1119 | . . . . . 280 15 39 239 359 187 Traps 1129 | . . . . . 290 15 39 239 359 187 Cloaking 729 | . . . . . . 1 25 239 359 105 Robot Analysis Total . | . . . . . . . . . . . Derelict Logs Recovered . | . . . . . . . . . . . Drone Launches . | . . . . . . . . . . . Drone Recoveries . | . . . . . . . . . . . Exploration | -11 -10 -9 -8 -7 -6 -5 -4 -3 -2 -1 ------------- Run | Yrd Mat Mat Mat Fac Fac Fac Fac Res Res Acc Turns Passed 2347 | 55 99 117 140 576 507 15 39 239 359 201 Spaces Moved 3206 | 37 81 97 108 407 949 40 123 434 524 406 Core 14 | 14 . . . . . . . . . . Treads . | . . . . . . . . . . . Legs 830 | 23 81 97 108 407 114 . . . . . Wheels . | . . . . . . . . . . . Hover . | . . . . . . . . . . . Flight 2362 | . . . . . 835 40 123 434 524 406 Fastest Speed 20 | 50 120 120 120 121 28 28 25 22 22 20 Average Speed 50 | 117 120 120 121 121 39 28 25 22 23 24 Slowest Speed 240 | 150 120 120 122 122 240 28 28 25 109 119 Overloaded Moves . | . . . . . . . . . . . Propulsion Burnouts . | . . . . . . . . . . . Robots Hopped 4 | . . . . . . . . 4 . . Potential Cave-ins . | . . . . . . . . . . . Cave-ins Triggered . | . . . . . . . . . . . Exploration Rate (%) 17 | 3 31 21 21 22 37 2 4 16 23 17 Regions Visited 10 Branch Regions . Pre-discovered Areas . | . . . . . . . . . . . Known Exits Taken 10 | 1 1 1 1 1 1 1 1 1 1 . Unknown Exits Taken . | . . . . . . . . . . . Scrap Searched . | . . . . . . . . . . . Spaces Dug 63 | . . . . . 11 . 1 24 12 15 Terrain Destroyed 63 | . . . . . 11 . 1 24 12 15 Melee 63 | . . . . . 11 . 1 24 12 15 Projectile . | . . . . . . . . . . . AOE . | . . . . . . . . . . . Terrain Rammed . | . . . . . . . . . . . Walls Destroyed . | . . . . . . . . . . . Machines Disabled . | . . . . . . . . . . . Actions | -11 -10 -9 -8 -7 -6 -5 -4 -3 -2 -1 --------- Run | Yrd Mat Mat Mat Fac Fac Fac Fac Res Res Acc Total 3698 | 46 82 97 115 463 1024 41 126 519 723 462 Wait 271 | . . . . 26 . . . 60 167 18 Move 3187 | 36 80 96 107 406 948 39 122 425 523 405 Hop 4 | . . . . . . . . 4 . . Pick Up 18 | 5 . . . 4 5 . . . 2 2 Fast Attach 32 | 5 1 . 5 3 13 . 3 . 1 1 Attach 12 | . 1 . . 3 1 1 . 2 1 3 Detach 4 | . . . . . 2 . . . 1 1 Swap 22 | . . . 2 3 8 . . 1 4 4 Drop 32 | . . . 1 6 17 . . . 5 3 Fire . | . . . . . . . . . . . Melee 115 | . . . . 12 30 1 1 27 19 25 Ram . | . . . . . . . . . . . Kick 1 | . . 1 . . . . . . . . Crush . | . . . . . . . . . . . Escape Stasis . | . . . . . . . . . . . Rewire . | . . . . . . . . . . . Trap . | . . . . . . . . . . . Miscellaneous . | . . . . . . . . . . . Route ------- -11/Scrapyard -10/Materials (discovered 3 exits: *Mat x3) -9/Materials (discovered 4 exits: *Mat x3 / *Min) -8/Materials (discovered 3 exits: *Fac x3) -7/Factory (discovered 5 exits: *Fac x4 / *Sto) -6/Factory (discovered 3 exits: *Fac / *Low x2) -5/Factory -4/Factory (discovered 4 exits: *Res x4) -3/Research (discovered 3 exits: *Res x3) -2/Research (discovered 4 exits: *Acc x3 / *Tes) -1/Access To Epsilon Eridani History --------- Turn | Location | Event 20 | -11/Scrapyard | Identified exit to Materials 20 | -11/Scrapyard | Discovered exit to Materials (range 14) 56 | -11/Scrapyard | Entered Materials 56 | -10/Materials | Evolved 1 slot: Propulsion x1 114 | -10/Materials | Identified exit to Materials 155 | -10/Materials | Entered another Materials area 155 | -9/Materials | Evolved 2 slots: Propulsion x1, Utility x1 165 | -9/Materials | Identified exit to Materials 208 | -9/Materials | Identified exit to Mines 208 | -9/Materials | Discovered exit to Mines (range 9) 272 | -9/Materials | Entered another Materials area 272 | -8/Materials | Evolved 2 slots: Propulsion x2 281 | -8/Materials | Identified exit to Factory 339 | -8/Materials | Build established: Hacker-Mutant 412 | -8/Materials | Entered Factory 412 | -7/Factory | Evolved 2 slots: Utility x2 477 | -7/Factory | Allied Derelicts emerged from ambush trap array 604 | -7/Factory | Identified exit to Factory 916 | -7/Factory | Identified exit to Storage 916 | -7/Factory | Discovered exit to Storage (range 6) 988 | -7/Factory | Entered another Factory area 988 | -6/Factory | Evolved 2 slots: Utility x2 1416 | -6/Factory | Identified exit to Lower Caves 1416 | -6/Factory | Discovered exit to Lower Caves (range 13) 1427 | -6/Factory | Discovered exit to Lower Caves (range 11) 1491 | -6/Factory | Identified exit to Factory 1491 | -6/Factory | Discovered exit to Factory (range 15) 1495 | -6/Factory | Entered another Factory area 1495 | -5/Factory | Evolved 2 slots: Utility x2 1503 | -5/Factory | Identified exit to Factory 1503 | -5/Factory | Discovered exit to Factory (range 10) 1510 | -5/Factory | Entered another Factory area 1510 | -4/Factory | Evolved 2 slots: Power x1, Utility x1 1524 | -4/Factory | Identified exit to Research 1549 | -4/Factory | Entered Research 1549 | -3/Research | Evolved 2 slots: Propulsion x2 1558 | -3/Research | Identified exit to Research 1780 | -3/Research | Build established: Hacker-Ninja 1788 | -3/Research | Entered another Research area 1788 | -2/Research | Evolved 2 slots: Utility x2 2003 | -2/Research | Identified exit to Access 2104 | -2/Research | Identified exit to Testing 2104 | -2/Research | Discovered exit to Testing (range 6) 2107 | -2/Research | Spotted B-90 Cyclops 2133 | -2/Research | Found Prototype Processor 2133 | -2/Research | Identified Exp. Core Analyzer 2147 | -2/Research | Entered Access 2147 | -1/Access | Evolved 2 slots: Propulsion x2 2214 | -1/Access | Spotted B-99 Colossus 2299 | -1/Access | Spotted B-99 Colossus 2321 | -1/Access | Spotted B-99 Colossus 2344 | -1/Access | Identified exit to Surface 2344 | -1/Access | Discovered exit to Surface (range 5) 2348 | *** | Escaped! Last Messages --------------- 02334_ Adv. Sensor Array destroyed. 02334_ Impulse Thruster Array destroyed. 02334_ Impulse Thruster destroyed. 02334_ Imp. Trap Scanner destroyed. 02334_ Penetrated by Slug. 02334_ Slug penetrates Sealed Heavy Doors. 02335_ Penetrated by Slug. 02335_ Slug penetrates Sealed Heavy Doors. 02335_ Penetrated by Slug. 02337_ B-99 Colossus activates siege mode. 02337_ Quantum Reactor destroyed. 02337_ Penetrated by Slug. 02337_ Slug penetrates Sealed Heavy Doors. 02337_ Penetrated by Slug. 02337_ Slug penetrates Sealed Heavy Doors. 02338_ Penetrated by Slug. 02338_ Slug penetrates Sealed Heavy Doors. 02344_ Main Access Shell breached. 02344_ EXIT=FOUND: SURFACE [Achievement: Travel Light] Map ----- +----------------------------------------------------+ | ### # #????????????????????????????? | | ??# # #????????????????????????????? | | ?# # #????????????????????????????? | | ?#* ##############????????????????????????????? | | #% #?????????????????????????????????????????? | | #=% #?????????????????????????????????????????? | | +* + ???????????????????????????????????????? | | # # "????????????????????????????????????? | | # # """ ??????????????????????????????????? | | ?# #? """ #????????????????????????????????? | | ?# #? " #????????????????????????????????? | | ??# #?? #????????????????????????????????? | | ??# #?? #????????????????????????????????? | | ??# #???######????????????????????????????????? | | ??# #?????????????????????????????????????????? | | ??# #?????????????????????????????????????????? | | ??# #?????????????????????????????????????????? | | ??# #?????????????????????????????????????????? | | ??# #?????????????????????????????????????????? | | ??# #?????????????????????????????????????????? | | ### #?#########??###??????????????????????????? | | #?# "??" ??????????????????????????? | | #?# "??" ??????????????????????????? | | ### "??" """"""?????????????????????? | | ##" "??" " "?????????????????????? | | # " % """" " "@ "?????????????????????? | | ##" % " " "" "?????????????????????? | | ?## % "" " "?????????????????????? | | ??########% % % %"""" """"""?????????????????????? | | ?????????# % %%"??" ?????????????????????????? | | ?????????# "??" ????????????????????????? | | ?????????#########??######???????????????????????? | | ?????????????????????????????????????????????????? | | ?????????????????????????????????????????????????? | | ?????????????????????????????????????????????????? | | ?????????????????????????????????????????????????? | | ?????????????????????????????????????????????????? | | ?????????????????????????????????????????????????? | | ?????????????????????????????????????????????????? | | ?????????????????????????????????????????????????? | | ?????????????????????????????????????????????????? | | ?????????????????????????????????????????????????? | | ?????????????????????????????????????????????????? | | ?????????????????????????????????????????????????? | | ?????????????????????????????????????????????????? | | ?????????????????????????????????????????????????? | | ?????????????????????????????????????????????????? | | ?????????????????????????????????????????????????? | | ?????????????????????????????????????????????????? | | ?????????????????????????????????????????????????? | +----------------------------------------------------+ Best States ------------- Heat Dissipation 61 Energy Generation 45 Energy Capacity 440 Matter Stores 300 Matter Capacity 300 Sight Range 22 Robot Scan Range 16 Terrain Scan Density 210 Cloak Strength 2 Additional Mass Support 9 Corruption Containment 8 Resistance: KI 35 Resistance: TH 35 Resistance: EX 35 Resistance: EM 35 Resistance: I 35 Resistance: S 35 Resistance: P 35 Core Shielding 20 Evasion (%) 65 Targeting Accuracy 13 Melee Accuracy 8 Offensive Hacking 20 Item Schematics ----------------- None Robot Schematics ------------------ None Fabricated ------------ Nothing Repaired ---------- Nothing Studied --------- None Alien Tech Used ----------------- None Achievements -------------- Travel Light Challenges ------------ None Game ------ Seed MappingVoltaicRailcannon Manual? 0 Play Time 00:34:29 Cumulative 218.2 hours Start 2026.06.17 @ 22:06:21 End 2026.06.17 @ 22:40:38 Sessions 1 Manual Loads 0 Difficulty Explorer Special Mode None Game No. 357 Rogue 216 Adventurer 15 Explorer 126 Win Type 0 Total 18 Types 18/0/0/0/0/0/0/0/0/0 Lore% 60 Gallery% 63 Achievement% 52 Wizard Run 0 Options --------- Layout 0 ASCII 0 Keyboard 1 Movement Numpad Keybinds 0 Fullscreen 2 Font 18/SmallcapsGlow Map View 76x50 Zoom Use 0% Tactical HUD 1 Map Filters NONE Filters NONE Steam 1 RUN: 5aaba2de-265e-441f-9f1c-ca0e43ff90e9